bitfinex-derivatives/quotes_ETHF0:USTF0_20210705
["timestamp","ask_amount","ask_price","bid_price","bid_amount"]
[1625472013521,2.60002889,2272.7,2272.6,2.20527]
[1625472013721,3.90476279,2272.7,2272.6,2.20527]
[1625472013922,1.3047339,2272.7,2272.6,2.20527]
[1625472014021,5.30334,2272.8,2272.6,2.20527]
[1625472014121,4.41054,2272.8,2272.6,2.20527]
[1625472014222,2.60010737,2272.7,2272.6,2.20527]
[1625472014826,3.60010737,2272.7,2272.6,2.20527]
[1625472014924,1.0,2272.7,2272.6,2.20527]
[1625472015224,2.30475571,2272.7,2272.6,2.20527]
[1625472017932,5.04755571,2272.7,2272.3,2.20527]
[1625472018438,3.38065754,2272.6,2272.3,1.39967]
[1625472018534,1.0,2272.5,2272.3,1.39967]
[1625472018633,2.20527,2272.4,2272.3,1.39967]
[1625472018736,3.20527,2272.4,2272.3,1.39967]
[1625472018936,4.51014139,2272.4,2272.3,1.39967]
[1625472019794,3.20527,2272.4,2272.3,1.39967]
[1625472023051,8.20527,2272.4,2271.9,2.20527]
[1625472023153,9.51020745,2272.4,2271.2,13.6344]
[1625472023251,4.51020745,2272.4,2271.2,13.6344]
[1625472023353,1.3003478,2271.7,2271.2,13.6344]
[1625472023752,2.3003478,2271.7,2271.2,13.6344]
[1625472024005,1.3003478,2271.7,2271.2,13.6344]
[1625472024103,1.0,2271.6,2271.2,13.6344]
[1625472024704,1.0,2271.6,2271.5,2.20527]
[1625472025108,2.20527,2271.7,2271.5,2.20527]
[1625472025207,1.0,2271.6,2271.5,2.20527]
[1625472025307,2.20527,2271.7,2271.5,2.20527]
[1625472025457,3.50530066,2271.7,2271.5,2.20527]
[1625472026209,1.0,2271.6,2271.5,2.20527]
[1625472027061,1.0,2271.6,2271.2,13.6344]
[1625472027321,1.0,2271.6,2270.5,1.27871354]
[1625472028014,1.0,2271.6,2270.4,1.27855897]
[1625472028714,2.20527,2271.1,2271.0,2.20527]
[1625472030671,4.41054,2271.1,2271.0,2.20527]
[1625472031372,1.0,2271.6,2271.0,2.20527]
[1625472031492,1.29941707,2271.7,2271.0,5.04277]
[1625472031924,1.299187,2271.8,2271.0,5.04277]
[1625472032676,2.20527,2271.6,2271.3,2.20527]
[1625472034783,2.20527,2271.6,2271.5,2.20527]
[1625472050044,1.29927704,2271.9,2271.5,2.20527]
[1625472050842,1.29927704,2271.9,2271.8,2.20527]
[1625472051044,2.29927704,2271.9,2271.8,2.20527]
[1625472052251,2.8196346,2271.9,2271.8,2.20527]
[1625472052452,2.8196346,2271.9,2271.8,1.57757]
[1625472052551,2.8196346,2271.9,2271.8,0.87517]
[1625472052852,5.0249046,2271.9,2271.8,0.87517]
[1625472053101,5.0249046,2271.9,2271.5,2.20527]
[1625472053702,1.29971934,2271.8,2271.5,2.20527]
[1625472053803,1.0,2271.7,2271.5,2.20527]
[1625472053953,3.557,2271.7,2271.5,2.20527]
[1625472054054,3.557,2271.7,2270.7,13.6643]
[1625472054154,4.85714301,2271.7,2270.7,13.6643]
[1625472054854,2.20527,2271.1,2271.0,2.20527]
[1625472067339,2.20527,2271.2,2271.0,2.20527]
[1625472067440,2.20527,2271.2,2271.0,5.16257]
[1625472068946,2.20527,2271.2,2271.1,2.20527]
[1625472072315,2.20527,2271.4,2271.1,2.20527]
[1625472072417,1.30020033,2271.7,2271.1,2.20527]
[1625472072717,1.29998287,2272.0,2271.1,2.20527]
[1625472072817,2.29998287,2272.0,2271.1,2.20527]
[1625472072916,2.29998287,2272.0,2271.6,51.1465]
[1625472073017,4.50525287,2272.0,2271.9,4.41054]
[1625472073324,3.50525287,2272.0,2271.9,4.41054]
[1625472073770,2.20527,2272.0,2271.9,4.41054]
[1625472074372,1.29994772,2272.1,2271.9,4.41054]
[1625472074974,3.50521772,2272.1,2271.9,4.41054]
[1625472075072,4.50521772,2272.1,2271.9,4.41054]
[1625472075172,2.29994772,2272.1,2271.9,4.41054]
[1625472075374,1.29994772,2272.1,2271.9,4.41054]
[1625472075580,1.29992616,2272.2,2271.9,4.41054]
[1625472075680,2.29992616,2272.2,2271.9,4.41054]
[1625472075781,2.29992616,2272.2,2272.0,52.6534]
[1625472075879,2.29992616,2272.2,2271.9,4.41054]
[1625472075980,1.29989339,2272.1,2271.9,4.41054]
[1625472076381,2.29992549,2272.2,2271.9,4.41054]
[1625472076681,1.29992549,2272.2,2271.9,4.41054]
[1625472077184,3.20527,2272.3,2271.9,4.41054]
[1625472077185,4.50511469,2272.3,2271.9,4.41054]
[1625472077285,3.50511469,2272.3,2271.9,4.41054]
[1625472077985,1.29984469,2272.3,2271.9,4.41054]
[1625472078086,1.8198033,2272.4,2271.9,4.41054]
[1625472078087,1.29978362,2272.4,2271.9,4.41054]
[1625472078586,1.29967944,2272.5,2272.0,16.079997]
[1625472078686,1.29967944,2272.5,2272.2,54.4705]
[1625472078989,1.29967944,2272.5,2272.4,4.41054]
[1625472079393,1.29964749,2272.6,2272.4,4.41054]
[1625472079901,3.37911801,2273.0,2272.4,4.41054]
[1625472080246,7.40385996,2273.5,2272.4,4.41054]
[1625472080247,3.378966,2273.1,2272.4,4.41054]
[1625472080347,2.59920461,2272.9,2272.4,4.41054]
[1625472080449,2.59920461,2272.9,2272.5,15.858294]
[1625472080558,11.24211752,2273.3,2272.5,15.858294]
[1625472080648,7.08339014,2273.3,2272.5,15.858294]
[1625472080851,8.08339014,2273.3,2272.5,15.858294]
[1625472080949,1.30457434,2273.2,2272.5,15.858294]
[1625472081051,1.30457434,2273.2,2273.1,4.41054]
[1625472081352,3.70527,2273.3,2273.1,4.41054]
[1625472082055,4.70527,2273.3,2273.1,4.41054]
[1625472082156,3.70527,2273.3,2273.1,4.41054]
[1625472087473,4.70527,2273.3,2273.1,4.41054]
[1625472092691,3.70527,2273.3,2273.1,4.41054]
[1625472094344,1.5,2273.3,2273.1,4.41054]
[1625472108104,1.5,2273.3,2273.2,48.0417]
[1625472108708,4.70527,2273.8,2273.2,48.0417]
[1625472108806,3.36874881,2274.2,2273.3,1.0]
[1625472109354,1.5,2274.3,2273.3,1.0]
[1625472109452,1.5,2274.3,2273.4,15.895992]
[1625472109552,1.5,2274.3,2273.5,1.0]
[1625472109703,1.5,2274.3,2274.2,4.41054]
[1625472113242,1.5,2274.3,2274.2,5.41054]
[1625472114395,0.0001,2274.3,2274.2,5.41054]
[1625472115197,2.20527,2275.1,2274.2,5.41054]
[1625472115297,5.17129533,2276.0,2274.2,5.41054]
[1625472115397,5.17102421,2276.1,2274.2,5.41054]
[1625472115719,0.8881,2275.9,2275.1,4.41054]
[1625472115899,3.86103701,2275.7,2275.1,4.41054]
[1625472116503,0.5,2275.7,2275.1,4.41054]
[1625472117107,0.8665,2275.5,2275.1,4.41054]
[1625472117302,0.5,2275.7,2275.1,4.41054]
[1625472117705,2.70527,2275.7,2275.1,4.41054]
[1625472118356,0.8903,2275.5,2275.1,4.41054]
[1625472119058,0.8903,2275.5,2275.1,3.36748856]
[1625472119157,0.8903,2275.5,2274.2,13.9825]
[1625472119358,3.8874,2275.2,2274.2,13.9825]
[1625472119458,3.8874,2275.2,2274.2,13.1013]
[1625472119658,45.2913,2274.4,2274.2,13.1013]
[1625472119757,48.7774,2274.4,2274.3,2.20527]
[1625472121463,3.4861,2274.4,2274.3,2.20527]
[1625472123014,2.20527,2274.6,2274.3,2.20527]
[1625472123117,2.20527,2274.9,2274.3,3.20527]
[1625472123762,2.20527,2274.9,2274.8,4.41054]
[1625472123863,0.5,2275.2,2274.8,4.41054]
[1625472125767,0.5,2275.2,2275.1,2.20527]
[1625472126872,0.5,2275.2,2275.1,3.20527]
[1625472127070,0.5,2275.7,2275.1,3.20527]
[1625472127475,1.5,2276.2,2275.1,3.20527]
[1625472127770,1.5,2276.2,2276.1,2.20527]
[1625472127870,1.5,2276.2,2276.1,4.41054]
[1625472128273,4.759,2276.8,2276.1,4.41054]
[1625472128371,4.759,2276.8,2276.7,52.042]
[1625472128580,4.12666699,2277.0,2276.7,52.042]
[1625472128674,4.12666699,2277.0,2276.7,55.4586]
[1625472128772,1.0,2277.2,2276.7,56.4586]
[1625472129875,1.0,2277.2,2277.0,4.41054]
[1625472130427,1.0,2277.2,2277.0,5.41054]
[1625472130787,0.5,2277.6,2277.0,5.41054]
[1625472131192,0.5,2277.6,2277.0,10.41054]
[1625472131292,0.5,2277.6,2277.1,16.052319]
[1625472131391,0.5,2277.6,2277.2,1.0]
[1625472131491,0.5,2277.6,2277.2,4.121]
[1625472131690,1.0,2278.2,2277.3,16.008005]
[1625472131793,0.5,2278.5,2277.4,6.0]
[1625472131896,0.5,2278.5,2278.0,6.93054]
[1625472131994,0.5,2278.5,2278.1,1.0]
[1625472132597,0.5,2278.5,2278.0,4.41054]
[1625472132798,1.0,2278.7,2278.0,4.41054]
[1625472132898,1.0,2279.2,2278.0,12.38634]
[1625472133003,0.5,2279.5,2278.0,12.38634]
[1625472133297,0.5,2279.5,2278.1,15.853839]
[1625472133701,0.5,2279.5,2278.2,1.0]
[1625472133849,0.5,2279.5,2279.4,4.41054]
[1625472134152,0.5,2279.5,2279.4,3.36929106]
[1625472137253,2.20527,2279.9,2279.4,3.36929106]
[1625472137655,1.0,2280.2,2279.4,3.36929106]
[1625472137755,1.0,2280.2,2279.4,5.66669106]
[1625472137854,1.0,2280.2,2279.9,4.41054]
[1625472141880,1.0,2280.2,2279.9,7.53884]
[1625472141979,1.0,2280.6,2279.9,7.53884]
[1625472142289,1.0,2280.6,2279.9,8.53884]
[1625472142491,1.0,2280.6,2280.3,42.2446]
[1625472143545,1.0,2280.6,2280.1,1.0]
[1625472143648,1.0,2280.6,2279.9,4.41054]
[1625472143851,0.23754371,2280.5,2279.2,3.3802]
[1625472143997,0.23754371,2280.5,2279.2,53.537]
[1625472144096,1.0,2280.6,2279.2,53.537]
[1625472144604,1.0,2280.6,2279.3,17.04041]
[1625472144804,0.23705358,2280.5,2279.3,17.04041]
[1625472145713,3.50855358,2280.5,2279.3,1.0]
[1625472145808,0.23707531,2280.4,2279.3,1.0]
[1625472145907,0.23707531,2280.4,2280.3,4.41054]
[1625472146708,0.23676525,2280.5,2280.3,4.41054]
[1625472149163,0.23676525,2280.5,2279.2,2.3157]
[1625472149263,3.40226525,2280.5,2278.7,2.1872]
[1625472149463,0.23651347,2280.4,2278.7,2.1872]
[1625472149667,0.23651347,2280.4,2278.8,1.0]
[1625472149864,0.21651347,2280.4,2278.8,16.996439]
[1625472149966,0.21651347,2280.4,2280.3,4.41054]
[1625472150164,0.21651347,2280.4,2280.3,3.89009582]
[1625472150367,1.0,2280.6,2280.3,3.89009582]
[1625472150867,1.0,2280.6,2278.7,1.0]
[1625472150970,4.0697,2280.6,2278.7,1.0]
[1625472151171,4.0697,2280.6,2273.1,3.9341774]
[1625472151320,4.0697,2280.6,2272.6,3.94145078]
[1625472151574,4.0697,2280.6,2272.9,68.0181]
[1625472151771,4.0697,2280.6,2278.0,1.0]
[1625472151937,2.20527,2278.9,2278.8,2.20527]
[1625472152045,4.99267,2278.9,2278.8,2.20527]
[1625472152874,4.99267,2278.9,2273.0,5.859]
[1625472152976,4.99267,2278.9,2277.5,1.0]
[1625472153929,2.20527,2278.4,2278.3,2.20527]
[1625472154227,4.71397,2278.4,2278.3,2.20527]
[1625472154478,4.71397,2278.4,2278.0,2.20527]
[1625472156000,2.20527,2278.1,2278.0,2.20527]
[1625472160809,2.20527,2278.1,2278.0,3.20527]
[1625472161108,1.1,2279.6,2278.0,6.07527]
[1625472161310,0.23281997,2279.5,2278.0,6.07527]
[1625472161959,2.20527,2278.5,2278.3,2.20527]
[1625472163213,2.20527,2278.5,2278.4,1.0]
[1625472164014,2.20527,2278.5,2278.4,3.20527]
[1625472164618,0.39767,2278.5,2278.4,3.20527]
[1625472164817,5.859,2280.5,2278.4,3.20527]
[1625472165118,0.23325457,2280.4,2278.4,3.20527]
[1625472165220,1.33325457,2280.4,2278.4,3.20527]
[1625472165424,0.23324765,2280.3,2278.4,3.20527]
[1625472166020,2.20527,2279.8,2279.6,2.20527]
[1625472166120,2.20527,2279.8,2279.6,4.77427]
[1625472166320,0.23349047,2279.7,2279.6,4.77427]
[1625472166670,0.23349047,2279.7,2279.6,3.73323182]
[1625472167071,0.23349047,2279.7,2279.6,4.73323182]
[1625472167370,2.20527,2279.8,2279.6,3.73323182]
[1625472168422,2.20527,2279.8,2279.6,4.73323182]
[1625472169525,2.20527,2279.8,2278.0,2.87]
[1625472169623,2.1,2279.7,2278.2,0.8665]
[1625472169724,2.1,2279.7,2277.5,14.0269]
[1625472169725,1.0,2279.7,2277.5,14.0269]
[1625472169854,0.23379236,2279.6,2277.5,12.7099]
[1625472170064,2.20527,2277.6,2277.5,12.7099]
[1625472170134,5.41054,2277.6,2277.5,4.9068]
[1625472170230,5.41054,2277.6,2277.5,3.9069]
[1625472170399,8.43964,2277.6,2277.2,2.20527]
[1625472170475,8.43964,2277.6,2274.2,0.8665]
[1625472170771,8.43964,2277.6,2273.0,5.759]
[1625472170772,8.43964,2277.6,2273.0,4.759]
[1625472170832,8.43964,2277.6,2271.8,3.95958863]
[1625472170933,8.43964,2277.6,2273.1,5.0]
[1625472171132,7.43964,2277.6,2273.1,5.0]
[1625472171266,7.43964,2277.6,2273.5,1.15]
[1625472171334,4.41054,2277.6,2273.5,1.15]
[1625472171565,4.41054,2277.6,2273.6,15.903896]
[1625472171652,4.41054,2277.6,2275.4,47.7443]
[1625472171754,4.41054,2277.6,2275.5,5.0]
[1625472172052,2.20527,2277.6,2277.5,2.20527]
[1625472172174,2.20527,2277.6,2277.2,2.20527]
[1625472172260,1.0,2277.5,2277.2,2.20527]
[1625472172447,1.0,2277.5,2275.6,16.067027]
[1625472172537,48.4525,2276.8,2275.6,16.067027]
[1625472172636,51.4726,2276.8,2275.6,16.067027]
[1625472172837,1.0,2276.7,2275.6,16.067027]
[1625472173036,1.0,2276.7,2274.3,16.081787]
[1625472173339,1.0,2276.7,2274.4,5.0]
[1625472173639,1.0,2276.7,2274.8,1.15]
[1625472174043,1.0,2276.7,2276.1,2.20527]
[1625472174044,2.20527,2276.2,2276.1,2.20527]
[1625472174140,5.47697,2276.2,2276.1,2.20527]
[1625472174447,5.47697,2276.2,2275.9,1.74464]
[1625472176015,2.20527,2276.0,2275.9,1.74464]
[1625472176116,3.20527,2276.0,2275.9,1.74464]
[1625472177216,3.20527,2276.0,2275.6,2.20527]
[1625472178082,2.20527,2275.7,2275.6,2.20527]
[1625472178179,6.48987,2275.7,2275.3,2.20527]
[1625472178823,6.48987,2275.7,2273.2,5.0]
[1625472178923,54.7326,2275.0,2273.8,5.0]
[1625472179525,54.7326,2275.0,2273.9,16.032316]
[1625472180025,54.7326,2275.0,2274.8,2.20527]
[1625472180026,2.20527,2275.0,2274.8,2.20527]
[1625472180695,2.20527,2275.0,2274.6,2.20527]
[1625472180821,5.64377,2275.0,2274.6,2.20527]
[1625472181579,5.64377,2275.0,2273.1,14.4723]
[1625472181680,1.0,2274.9,2272.4,14.5121]
[1625472182137,2.20527,2274.2,2274.1,2.20527]
[1625472182230,4.92737,2274.2,2274.1,2.20527]
[1625472183693,4.92737,2274.2,2273.8,2.20527]
[1625472184087,2.20527,2273.9,2273.8,2.20527]
[1625472185341,2.20527,2273.9,2273.4,2.20527]
[1625472185544,3.20527,2273.9,2273.4,2.20527]
[1625472185643,2.20527,2273.9,2273.4,2.20527]
[1625472186143,2.20527,2273.5,2271.3,14.2264]
[1625472186244,2.20527,2273.5,2271.4,14.5882]
[1625472186644,2.20527,2273.5,2271.3,14.2264]
[1625472186845,2.20527,2273.5,2271.5,16.038001]
[1625472187146,45.1643,2273.2,2271.4,15.839552]
[1625472188101,45.1643,2273.2,2273.0,2.20527]
[1625472190110,2.20527,2273.1,2273.0,2.20527]
[1625472190911,3.20527,2273.1,2272.8,2.20527]
[1625472191263,3.20527,2273.1,2271.3,14.2264]
[1625472191763,2.20527,2273.1,2271.3,14.2264]
[1625472191966,2.20527,2273.1,2271.4,15.860567]
[1625472192164,2.20527,2272.6,2272.5,2.20527]
[1625472193891,2.20527,2272.6,2271.3,14.2264]
[1625472193971,5.48847,2272.6,2270.3,14.5333]
[1625472194171,2.20527,2271.5,2271.4,2.20527]
[1625472194722,3.3401524,2271.5,2271.4,2.20527]
[1625472194973,56.6726524,2271.5,2271.4,2.20527]
[1625472195829,56.6726524,2271.5,2270.3,14.5333]
[1625472196138,2.20527,2271.0,2270.9,2.20527]
[1625472196628,4.60597,2271.0,2270.9,2.20527]
[1625472198233,2.20527,2271.0,2270.9,2.20527]
[1625472201711,3.20527,2271.0,2270.9,2.20527]
[1625472201809,2.20527,2271.0,2270.9,2.20527]
[1625472202113,2.20527,2271.0,2270.0,0.05]
[1625472202211,2.20527,2270.3,2270.0,0.05]
[1625472203375,4.60637,2270.3,2270.0,0.05]
[1625472204186,2.20527,2270.1,2270.0,0.05]
[1625472204287,2.20527,2270.1,2268.4,12.7169]
[1625472204391,3.20527,2270.1,2268.4,12.7169]
[1625472204688,3.20527,2270.1,2267.4,13.9043]
[1625472204988,52.5425,2268.5,2267.4,13.9043]
[1625472205093,52.5425,2268.5,2265.2,0.8826]
[1625472205186,2.7774,2268.5,2265.2,0.8826]
[1625472205286,2.7774,2268.5,2265.2,5.0]
[1625472205488,2.20527,2270.1,2265.2,5.0]
[1625472205596,13.9154,2270.0,2265.2,5.0]
[1625472205688,13.9154,2270.0,2266.6,37.7409]
[1625472205788,13.9154,2270.0,2266.7,5.0]
[1625472206139,13.9154,2270.0,2266.8,15.931957]
[1625472206239,2.20527,2268.5,2268.4,2.20527]
[1625472206739,13.9154,2270.0,2268.4,2.20527]
[1625472207040,1.26822629,2273.0,2268.4,2.20527]
[1625472207139,53.3325,2271.5,2268.5,15.971225]
[1625472207413,14.08641559,2271.3,2268.5,15.971225]
[1625472207491,1.0,2271.2,2268.5,15.971225]
[1625472207691,0.22250167,2271.1,2268.5,15.971225]
[1625472208241,2.20527,2269.1,2269.0,2.20527]
[1625472209698,2.20527,2269.1,2269.0,18.257352]
[1625472210250,4.41054,2269.1,2269.0,18.257352]
[1625472211351,4.41054,2269.1,2269.0,2.20527]
[1625472212452,4.41054,2269.1,2269.0,18.12571]
[1625472213159,4.41054,2269.1,2269.0,2.20527]
[1625472213707,4.41054,2269.1,2268.4,2.20527]
[1625472214307,4.41054,2268.5,2267.8,2.20527]
[1625472215059,4.41054,2268.5,2267.9,15.971792]
[1625472215912,4.41054,2268.5,2267.8,2.20527]
[1625472216320,2.20527,2267.9,2267.8,2.20527]
[1625472216717,2.20527,2267.9,2267.6,2.20527]
[1625472218071,2.5172,2268.2,2267.6,2.20527]
[1625472218373,2.20527,2267.7,2267.6,4.41054]
[1625472219587,1.16028697,2267.7,2267.6,4.41054]
[1625472222142,1.16028697,2267.7,2267.6,20.419219]
[1625472224755,1.16028697,2267.7,2267.6,4.41054]
[1625472230439,2.20527,2267.9,2267.6,4.41054]
[1625472230640,2.20527,2267.9,2267.6,20.456949]
[1625472231266,2.20527,2267.9,2267.6,4.41054]
[1625472232401,2.20527,2267.7,2267.6,4.41054]
[1625472233603,5.04107,2267.7,2267.6,4.41054]
[1625472238967,5.04107,2267.7,2266.3,44.4541]
[1625472239568,5.04107,2267.7,2266.0,11.745]
[1625472239668,5.04107,2267.7,2266.4,16.022434]
[1625472239770,2.20527,2267.7,2266.4,16.022434]
[1625472239873,3.20527,2267.7,2266.5,5.0]
[1625472239972,2.20527,2267.7,2266.5,5.0]
[1625472240224,2.20527,2267.7,2266.6,15.97464]
[1625472240322,2.20527,2267.7,2267.1,45.1001]
[1625472240475,2.20527,2267.7,2267.5,2.20527]
[1625472241986,3.20527,2267.7,2267.5,2.20527]
[1625472242495,2.20527,2267.6,2267.5,2.20527]
[1625472242592,5.73187,2267.6,2267.5,2.20527]
[1625472242993,5.73187,2267.6,2267.3,2.20527]
[1625472243248,6.73187,2267.6,2267.3,2.20527]
[1625472243496,5.73187,2267.6,2267.3,2.20527]
[1625472243948,5.73187,2267.6,2267.4,16.094888]
[1625472245054,5.73187,2267.6,2267.3,2.20527]
[1625472245502,3.5266,2267.6,2267.3,2.20527]
[1625472245601,4.547,2269.3,2267.3,2.20527]
[1625472245755,1.0,2268.4,2267.3,2.20527]
[1625472245856,1.0,2268.4,2267.4,15.983185]
[1625472246507,3.20527,2268.4,2268.3,2.20527]
[1625472246704,3.20527,2268.4,2267.4,15.983185]
[1625472246807,5.87067,2268.4,2267.2,16.094079]
[1625472248506,5.87067,2268.4,2268.2,2.20527]
[1625472249008,5.87067,2268.4,2268.0,2.20527]
[1625472250511,2.20527,2268.1,2268.0,2.20527]
[1625472253167,1.0,2269.2,2268.0,2.20527]
[1625472253366,1.0,2269.2,2268.0,7.20527]
[1625472253474,4.03555325,2274.8,2268.0,9.99997]
[1625472253568,4.03555325,2274.8,2268.0,25.960237]
[1625472253770,2.52160974,2275.0,2268.6,46.4495]
[1625472253872,14.6997,2272.0,2268.6,46.4495]
[1625472254083,14.6997,2272.0,2268.6,49.5312]
[1625472254268,1.9885,2271.4,2268.6,49.5312]
[1625472254370,1.0,2271.3,2268.6,49.5312]
[1625472254581,2.20527,2269.5,2269.4,2.20527]
[1625472254671,2.20527,2269.5,2269.4,4.54517]
[1625472255472,2.20527,2269.5,2269.4,20.499946]
[1625472255670,1.0,2271.3,2269.4,20.499946]
[1625472256530,2.20527,2270.3,2270.2,2.20527]
[1625472256625,3.20527,2270.3,2270.2,2.20527]
[1625472257293,3.20527,2270.3,2270.0,2.20527]
[1625472257394,6.46137,2270.3,2270.0,2.20527]
[1625472258597,2.20527,2270.1,2269.6,2.20527]
[1625472258700,1.0,2270.0,2269.6,2.20527]
[1625472259398,1.0,2270.0,2268.2,5.0]
[1625472259800,1.0,2270.0,2266.8,5.6527]
[1625472260204,1.0,2270.0,2267.9,5.0]
[1625472260303,1.0,2270.0,2268.2,16.03235]
[1625472260405,1.0,2270.0,2268.2,21.03235]
[1625472260555,2.20527,2269.5,2269.4,2.20527]
[1625472260656,5.50847,2269.5,2269.4,2.20527]
[1625472262614,7.71374,2269.5,2269.4,2.20527]
[1625472265065,3.3032,2269.5,2269.4,2.20527]
[1625472266614,7.71374,2269.5,2269.4,2.20527]
[1625472270032,7.71374,2269.5,2268.1,13.8299]
[1625472270382,7.71374,2269.5,2267.8,3.2789]
[1625472270482,7.71374,2269.5,2267.6,5.0]
[1625472270581,7.71374,2269.5,2268.9,2.20527]
[1625472270582,2.20527,2269.1,2268.9,2.20527]
[1625472270681,1.0,2269.0,2268.9,2.20527]
[1625472271487,1.0,2269.0,2268.6,2.20527]
[1625472271584,3.4918,2269.0,2268.6,2.20527]
[1625472272486,3.4918,2269.0,2266.2,0.8935]
[1625472272487,3.4918,2269.0,2266.8,5.6527]
[1625472272597,2.20527,2267.8,2267.7,2.20527]
[1625472272700,4.73627,2267.8,2267.7,2.20527]
[1625472272901,59.62667,2267.8,2267.7,2.20527]
[1625472273000,60.62667,2267.8,2267.7,2.20527]
[1625472273855,5.73627,2267.8,2267.7,2.20527]
[1625472274608,7.94154,2267.8,2267.7,2.20527]
[1625472278871,6.94154,2267.8,2267.7,2.20527]
[1625472279421,7.94154,2267.8,2267.7,2.20527]
[1625472280422,52.13514,2267.8,2267.7,2.20527]
[1625472280525,52.13514,2267.8,2266.9,14.3527]
[1625472280724,2.20527,2267.3,2267.2,2.20527]
[1625472280826,5.94887,2267.3,2267.2,2.20527]
[1625472282679,8.15414,2267.3,2267.2,2.20527]
[1625472282878,8.15414,2267.3,2266.1,4.759]
[1625472284739,2.20527,2266.7,2266.6,2.20527]
[1625472284847,3.20527,2266.7,2266.6,2.20527]
[1625472286703,5.41054,2266.7,2266.6,2.20527]
[1625472286904,8.77334,2266.7,2266.6,2.20527]
[1625472287106,8.77334,2266.7,2266.4,2.20527]
[1625472287303,8.77334,2266.7,2266.1,4.759]
[1625472287803,48.4254,2266.2,2266.1,4.759]
[1625472287905,52.598,2266.2,2266.1,4.759]
[1625472288355,52.598,2266.2,2265.3,7.44563099]
[1625472288457,52.598,2266.2,2265.3,6.57043099]
[1625472288756,54.80327,2266.2,2266.1,2.20527]
[1625472289259,54.80327,2266.2,2265.5,1.81252097]
[1625472289459,54.80327,2266.2,2265.3,6.57165482]
[1625472289708,54.80327,2266.2,2265.3,4.759]
[1625472289810,54.80327,2266.2,2265.3,5.653]
[1625472290160,54.80327,2266.2,2265.3,4.759]
[1625472290609,54.80327,2266.2,2265.3,6.57193838]
[1625472290811,4.41054,2265.4,2265.3,6.57193838]
[1625472290910,4.41054,2265.4,2265.3,4.759]
[1625472292163,3.3646126,2265.4,2265.3,4.759]
[1625472292414,4.3646126,2265.4,2265.3,4.759]
[1625472292914,4.3646126,2265.4,2265.1,2.20527]
[1625472294020,4.3646126,2265.4,2264.5,4.759]
[1625472294571,39.7532,2264.7,2264.5,4.759]
[1625472294675,3.6939,2264.6,2264.5,4.759]
[1625472294787,8.10444,2264.6,2264.5,4.759]
[1625472294871,8.10444,2264.6,2264.3,2.20527]
[1625472296325,7.10444,2264.6,2264.3,2.20527]
[1625472296423,4.41054,2264.6,2264.3,2.20527]
[1625472296773,4.41054,2264.6,2264.4,2.20527]
[1625472296886,4.41054,2264.6,2264.4,4.40077]
[1625472297330,48.4254,2266.2,2264.4,4.40077]
[1625472297525,1.0,2266.1,2264.4,4.40077]
[1625472297982,1.0,2266.1,2264.5,16.153532]
[1625472298782,2.20527,2265.3,2265.2,2.20527]
[1625472298984,2.20527,2265.3,2264.5,16.153532]
[1625472299084,2.20527,2265.3,2264.4,2.1955]
[1625472299683,2.20527,2265.3,2264.5,16.097759]
[1625472299784,3.20527,2265.3,2264.5,16.097759]
[1625472300536,3.20527,2265.3,2264.4,6.9545]
[1625472300838,3.20527,2265.3,2264.8,2.20527]
[1625472301990,2.20527,2265.3,2264.8,4.50527]
[1625472302798,2.20527,2265.3,2265.2,2.20527]
[1625472304807,3.20527,2265.3,2265.2,2.20527]
[1625472305270,2.20527,2265.3,2265.2,2.20527]
[1625472306172,69.6137,2266.5,2265.2,2.20527]
[1625472306373,1.0,2266.4,2265.2,2.20527]
[1625472306872,2.20527,2265.8,2265.5,2.20527]
[1625472307875,2.20527,2266.0,2265.5,2.20527]
[1625472308875,2.20527,2266.0,2265.9,2.20527]
[1625472311078,1.0,2266.3,2265.9,2.20527]
[1625472311481,2.20527,2266.4,2265.9,2.20527]
[1625472311580,2.20527,2266.4,2265.9,4.55587]
[1625472311681,3.20527,2266.4,2265.9,4.55587]
[1625472312233,2.20527,2266.4,2265.9,4.55587]
[1625472312835,2.20527,2266.4,2266.3,2.20527]
[1625472313436,3.20527,2266.4,2266.3,2.20527]
[1625472315335,1.0,2266.4,2266.3,2.20527]
[1625472317935,2.20527,2266.5,2266.3,2.20527]
[1625472318238,1.0,2266.4,2266.3,2.20527]
[1625472318638,2.20527,2266.5,2266.3,2.20527]
[1625472319594,3.20527,2266.5,2266.3,2.20527]
[1625472320542,2.20527,2266.5,2266.3,2.20527]
[1625472320794,2.20527,2266.7,2266.3,2.20527]
[1625472320896,1.0,2266.9,2266.6,2.20527]
[1625472320994,1.0,2266.9,2266.6,5.19857]
[1625472324971,1.0,2266.9,2266.7,2.20527]
[1625472327628,2.20527,2267.0,2266.7,2.20527]
[1625472327826,1.0,2266.9,2266.7,2.20527]
[1625472332028,1.0,2266.9,2266.6,2.20527]
[1625472333030,2.20527,2266.7,2266.6,2.20527]
[1625472333129,3.20527,2266.7,2266.6,2.20527]
[1625472336444,3.20527,2266.7,2266.4,0.05]
[1625472336645,3.20527,2266.7,2265.4,6.986]
[1625472337096,2.20527,2265.6,2265.5,2.20527]
[1625472339050,4.41054,2265.6,2265.5,2.20527]